Cogmind - Beta 13 @@@ ROGUE MODE // 2024.05.02 @ 14:59:57 Player: Barbarossa Result: Core destroyed Performance ------------- Evolutions (5) 2500 Regions Visited (10) 2000 Robots Destroyed (192) 960 Value Destroyed (6574) 6574 Prototype IDs (11) 220 Alien Tech Used (0) 0 Bonus (3828) 3828 TOTAL SCORE: 16082 Bonus ------- High Alert Combat Kills 518 Follower Combat Kills 1834 Network Hubs Disabled 400 Built Enhanced Grunts 300 A7 Reached Mainframe 300 Met R17 at Cetus 500 Friendly Fire -24 Cogmind --------- Core Integrity 0/1000 Matter 236/300 Energy 183/350 System Corruption 4% Temperature Critical (740) Movement Treading (320) Ox2 Location -5/Factory Parts ------- > --- POWER (1) -------- Quantum Reactor > --- PROPULSION (4) --- Centrium Heavy Treads (fused) Armored Huge Wheel > --- UTILITY (8) ------ Improved Cooling System Cargo Storage Unit Advanced Signal Interpreter Centrium Medium Armor Plating Hacking Suite Improved System Shield Advanced System Shield > --- WEAPON (4) ------- Plasma Rifle Plasma Rifle Plasma Rifle > --- INVENTORY (30) --- Neutrino Core Neutrino Core Improved Medium Treads Armored Medium Treads Armored Medium Treads Centrium Heavy Treads Energy Well (350) High-capacity Matter Pod (200) Advanced Sensor Array Advanced Targeting Computer Recoil Stabilizer Layered Medium Armor Plating Centrium Medium Armor Plating Improved Focal Shield Hacking Suite System Guard System Guard Plasma Rifle Wave Gun Mass Driver Mass Driver Mass Driver Hypervelocity Gauss Cannon Hypervelocity Gauss Cannon Hypervelocity Gauss Cannon Improved Datajack Improved Plasma Cutter Peak State ------------ > --- POWER ------------ Quantum Reactor > --- PROPULSION ------- Centrium Heavy Treads Armored Huge Wheel > --- UTILITY ---------- Improved Cooling System Cargo Storage Unit Advanced Signal Interpreter Centrium Medium Armor Plating Hacking Suite Improved System Shield Advanced System Shield > --- WEAPON ----------- Plasma Rifle Plasma Rifle Plasma Rifle Advanced Plasma Cannon > --- INVENTORY -------- Neutrino Core Neutrino Core Improved Medium Treads Armored Medium Treads Armored Medium Treads Centrium Heavy Treads Improved Cooling System Energy Well High-capacity Matter Pod Advanced Sensor Array Advanced Targeting Computer Recoil Stabilizer Layered Medium Armor Plating Centrium Medium Armor Plating Improved Focal Shield Hacking Suite System Guard System Guard Plasma Rifle Plasma Rifle Wave Gun Mass Driver Mass Driver Mass Driver Hypervelocity Gauss Cannon Hypervelocity Gauss Cannon Hypervelocity Gauss Cannon Improved Datajack Improved Plasma Cutter [Rating: 106] Favorites ----------- Power Quantum Reactor Engine Light Ion Engine Power Core Nuclear Core Reactor Quantum Reactor Propulsion Armored Huge Wheel Treads Light Treads Leg Aluminum Leg Wheel Armored Huge Wheel Utility Cargo Storage Unit Device Improved Cooling System Storage Cargo Storage Unit Processor Improved Signal Interpreter Hackware System Shield Protection Centrium Medium Armor Plating Weapon Advanced Beam Rifle Energy Gun Advanced Beam Rifle Energy Cannon Heavy Plasma Cannon Ballistic Gun Enhanced Autogun Ballistic Cannon Hypervelocity Gauss Cannon Special Weapon Plasma Cutter Special Melee Weapon Improved Datajack Build | -11 -10 -9 -8 -7 -6 -6 -6 -6 -6 -5 ------- Run | Yrd Mat Mat Mat Fac Fac Ext Cet Arc Hub Fac Slots Evolved 10 | . . 2 2 2 2 . . . . 2 Power . | . . . . . . . . . . . Propulsion 2 | . . 1 1 . . . . . . . Utility 6 | . . 1 1 2 1 . . . . 1 Weapon 2 | . . . . . 1 . . . . 1 Parts Attached 177 | 2 20 26 30 19 9 9 10 . 4 48 Power 19 | . 1 3 4 2 2 . 1 . 1 5 Engine 9 | . 1 3 2 1 1 . . . 1 . Core 7 | . . . 2 1 1 . . . . 3 Reactor 3 | . . . . . . . 1 . . 2 Propulsion 40 | 2 8 9 8 3 2 5 1 . . 2 Treads 18 | . . 4 4 2 2 4 1 . . 1 Leg . | . . . . . . . . . . . Wheel 22 | 2 8 5 4 1 . 1 . . . 1 Hover . | . . . . . . . . . . . Flight . | . . . . . . . . . . . Utility 47 | . 4 7 7 9 2 1 4 . . 13 Device 10 | . 1 1 1 2 1 1 . . . 3 Storage 6 | . 3 3 . . . . . . . . Processor 4 | . . . 1 2 . . . . . 1 Hackware 6 | . . 1 . . . . 2 . . 3 Protection 21 | . . 2 5 5 1 . 2 . . 6 Artifact . | . . . . . . . . . . . Weapon 71 | . 7 7 11 5 3 3 4 . 3 28 Energy Gun 45 | . 7 7 6 4 3 1 1 . . 16 Energy Cannon 4 | . . . . . . 1 . . . 3 Ballistic Gun 8 | . . . 4 1 . . 1 . 1 1 Ballistic Cannon 10 | . . . 1 . . . 1 . 1 7 Launcher . | . . . . . . . . . . . Special Weapon 3 | . . . . . . 1 1 . 1 . Impact Weapon . | . . . . . . . . . . . Slashing Weapon . | . . . . . . . . . . . Piercing Weapon . | . . . . . . . . . . . Special Melee Weapon 1 | . . . . . . . . . . 1 Unidentified Prototypes 11 | . . . 4 3 . . 4 . . . Parts Lost 36 | . 2 6 3 9 2 . 1 . 4 9 Power 8 | . 1 2 1 2 . . . . 1 1 Propulsion 11 | . . 3 2 4 1 . . . . 1 Utility 5 | . . . . 2 . . 1 . 1 1 Weapon 12 | . 1 1 . 1 1 . . . 2 6 Highest Loss Streak 3 | . 2 3 2 3 1 . 1 . 3 3 To Critical Strikes 1 | . . 1 . . . . . . . . Average Slot Usage (%) 80 | . 81 82 85 80 74 80 78 80 79 78 Engine 4 | . 10 10 4 2 4 . . . . . Core 2 | . . . 4 4 1 6 1 . . 3 Treads 9 | . . 9 17 14 9 13 6 6 6 5 Wheel 11 | . 27 21 13 6 6 6 6 6 6 4 Device 3 | . 3 . 3 8 6 6 1 . . 4 Storage 9 | . 14 17 9 7 6 6 6 6 6 5 Processor 6 | . . . 5 11 13 13 13 13 13 6 Hackware 4 | . . . . . . . 9 13 13 16 Protection 4 | . . . 9 7 5 6 6 6 5 4 Energy Gun 14 | . 18 21 7 14 18 17 7 6 6 12 Energy Cannon 1 | . . . . . . 2 6 6 5 1 Ballistic Gun 2 | . 6 . 9 . . . 1 . 1 1 Ballistic Cannon 1 | . . . . . . . 2 6 3 4 Naked Turns . | . . . . . . . . . . . Heaviest Build 233 | 13 147 233 164 167 183 186 191 191 191 197 Greatest Support 80 | 32 32 24 28 28 28 58 28 28 28 80 Greatest Overweight (x) 12 | . 11 12 12 5 6 6 6 6 6 7 Average Overweight (x) 5 | . 3 7 5 5 6 5 6 6 5 5 Largest Inventory Capacity 30 | 8 30 30 30 30 30 30 30 30 30 30 Average Capacity 29 | 8 25 29 30 30 30 30 30 30 30 30 Most Carried 30 | 8 30 30 30 30 30 30 30 30 30 30 Average Carried 28 | 6 21 28 28 29 29 29 29 30 29 27 Final Capacity 30 | 8 30 30 30 30 30 30 30 30 30 30 Final Carried 30 | 7 30 25 30 30 29 30 30 30 28 28 Class Distribution -------------------- 51% | Hauler-Mutant 25% | Hauler-Gunner 11% | Hacker-Tank 4% | Mutant 3% | Hacker-Mutant Dominant Class ---------------- Hauler-Mutant | -10/Materials Hauler-Mutant | -9/Materials Hauler-Mutant | -8/Materials Hauler-Mutant | -7/Factory Hauler-Gunner | -6/Factory Hauler-Gunner | -6/Extension Hauler-Gunner | -6/Cetus Hauler-Gunner | -6/Archives Hauler-Gunner | -6/Hub_04(d) Hacker-Tank | -5/Factory Resources | -11 -10 -9 -8 -7 -6 -6 -6 -6 -6 -5 ----------- Run | Yrd Mat Mat Mat Fac Fac Ext Cet Arc Hub Fac Matter Collected 3657 | 221 300 341 676 198 . 188 131 38 179 1385 Remotely . | . . . . . . . . . . . Salvage Created 9308 | 77 668 1436 1393 987 427 832 74 210 416 2788 Parts 410 | 4 38 73 88 29 13 29 4 10 25 97 Haulers Intercepted 14 | . 2 2 5 . . 2 . . . 3 Recyclers Shooed 10 | . 2 2 . . . . . . . 6 Parts Field Recycled . | . . . . . . . . . . . Retrieved Matter . | . . . . . . . . . . . Parts Self-Destructed . | . . . . . . . . . . . Prevented . | . . . . . . . . . . . Kills | -11 -10 -9 -8 -7 -6 -6 -6 -6 -6 -5 ------- Run | Yrd Mat Mat Mat Fac Fac Ext Cet Arc Hub Fac Combat Hostiles Destroyed 133 | . 11 31 21 15 8 8 1 3 7 28 Guns 101 | . 11 31 20 11 6 6 1 . 2 13 Cannons 18 | . . . . . . . . 2 5 11 Classes Destroyed 16 | 1 5 3 . 2 1 2 . . 1 1 Worker 7 | . . 1 2 . . . . . . 4 Builder 7 | . . . . . . 1 . . 1 5 Tunneler 1 | . . . . 1 . . . . . . Hauler 14 | . 2 2 5 . . 2 . . . 3 Recycler 15 | 1 1 2 3 2 . . . . . 6 Operator 3 | . 2 . . 1 . . . . . . Watcher 12 | . 3 2 2 . . 2 . . 1 2 Swarmer 25 | . 3 11 7 . . . . . . 4 Grunt 56 | . 8 12 6 9 2 6 . . 3 10 Brawler 3 | . . . . . 1 1 . . . 1 Duelist 2 | . . 1 . . . . . . . 1 Sentry 27 | . . 7 8 4 1 . . 3 2 2 Specialist 3 | . . . . . . . . . . 3 Programmer 14 | . . . . 2 4 . . . 1 7 Heavy 1 | . . . . . . . . . 1 . Behemoth 1 | . . . . . . 1 . . . . Cetus Guard 1 | . . . . . . . 1 . . . Best Kill Streak 8 | 1 4 4 4 5 3 3 1 2 3 8 Combat Bots Only 5 | . 2 4 4 5 3 2 1 2 3 4 Max Kills in Single Turn 4 | 1 1 2 2 1 1 2 1 1 1 4 Gunslinging 1 | . . 1 . . . . . . . . Exploded . | . . . . . . . . . . . Melee . | . . . . . . . . . . . Uniques/NPCs Destroyed . | . . . . . . . . . . . Combat | -11 -10 -9 -8 -7 -6 -6 -6 -6 -6 -5 -------- Run | Yrd Mat Mat Mat Fac Fac Ext Cet Arc Hub Fac Hostile Shots Fired 1172 | . 65 203 101 313 63 81 20 1 78 247 Missed 347 | . 18 53 24 122 23 28 6 . 18 55 Damage Taken 12716 | . 522 1732 1094 2145 561 663 254 27 1799 3919 Core 2440 | . 187 347 99 316 54 95 24 . 251 1067 Absorbed by Shields 251 | . . . . . . 140 111 . . . Regen/Repaired (Parts) 1085 | . 126 959 . . . . . . . . Core Remaining (%) 54 | 100 25 13 82 54 . . . . 50 . Volleys Fired 563 | 1 76 117 92 67 22 45 11 4 18 110 Largest 4 | 2 2 2 2 2 3 3 3 3 3 4 Hottest 323 | 60 80 126 126 122 183 212 212 227 227 323 Shots Fired 1301 | 2 129 203 184 134 65 135 30 11 50 358 Gun 1120 | 2 129 203 183 134 65 127 18 3 21 235 Cannon 181 | . . . 1 . . 8 12 8 29 123 Launcher . | . . . . . . . . . . . Special . | . . . . . . . . . . . Kinetic 308 | 1 49 . 105 . . . 5 4 16 128 Thermal 991 | . 79 203 79 134 65 135 25 7 34 230 Explosive . | . . . . . . . . . . . Electromagnetic 2 | 1 1 . . . . . . . . . Robot Hit Streak 28 | 1 10 11 21 28 15 15 5 2 7 9 Robot Miss Streak 7 | . 4 5 7 1 2 4 2 1 1 5 Penetration Max 1 | . . . . . . . . . . 1 Secondary Targets 10 | . 2 3 . 1 1 1 . . . 2 Max Gunslinging Chain 1 | . 1 1 . 1 1 1 . . . 1 Shots Hit Robots 827 | 1 74 132 111 114 47 92 20 6 22 208 Core Hits 337 | 1 39 53 49 37 17 33 4 2 12 90 Critical Kills 18 | . . . 1 . . 1 . 2 . 14 Critical Parts Destroyed 23 | . . . . . . . . 1 2 20 Critical Strikes 90 | . . 9 5 11 3 9 1 3 2 47 Burn 49 | . . 9 4 11 3 8 1 . . 13 Meltdown 3 | . . . . . . 1 . 1 . 1 Destroy 38 | . . . 1 . . . . 2 2 33 Melee Attacks . | . . . . . . . . . . . Impact . | . . . . . . . . . . . Slashing . | . . . . . . . . . . . Piercing . | . . . . . . . . . . . Sneak Attacks . | . . . . . . . . . . . Combat Hostiles . | . . . . . . . . . . . Follow-up Attacks . | . . . . . . . . . . . Damage Inflicted 16790 | 15 781 1884 1963 2207 1014 2058 526 162 773 5407 Guns 13877 | 15 781 1884 1963 2207 1014 1866 302 58 288 3499 Cannons 2631 | . . . . . . 192 224 104 439 1672 Explosions 282 | . . . . . . . . . 46 236 Melee . | . . . . . . . . . . . Ramming . | . . . . . . . . . . . Kinetic 3598 | . 228 . 1120 . . . 25 71 152 2002 Thermal 12875 | . 533 1884 843 2207 1014 2058 501 91 575 3169 Explosive 236 | . . . . . . . . . . 236 Electromagnetic 81 | 15 20 . . . . . . . 46 . Impact . | . . . . . . . . . . . Slashing . | . . . . . . . . . . . Piercing . | . . . . . . . . . . . Highest Corruption 11 | . . . . 2 1 1 1 1 11 4 Average Corruption 1 | . . . . 1 1 1 1 1 1 2 Corruption Purged . | . . . . . . . . . . . Corruption Blocked . | . . . . . . . . . . . Effects 63 | . . . . 5 2 9 4 2 5 36 Message Errors 9 | . . . . . 1 2 2 . . 4 Matter Fused 15 | . . . . 1 . 2 1 1 1 9 Heat Flow Errors 12 | . . . . 2 . 5 . . . 5 Energy Discharges 10 | . . . . 1 1 . . 1 2 5 Parts Rejected 1 | . . . . . . . . . . 1 Parts Fused 1 | . . . . . . . . . . 1 Data Loss (minor) 9 | . . . . . . . 1 . 1 7 Data Loss (major) 2 | . . . . . . . . . . 2 Misfires 1 | . . . . . . . . . 1 . Alerts 1 | . . . . 1 . . . . . . Weapon Failures 2 | . . . . . . . . . . 2 Overload Shots . | . . . . . . . . . . . Overflow Damage 11 | . . . . . . . . . . 11 Projectiles 11 | . . . . . . . . . . 11 Explosions . | . . . . . . . . . . . Melee . | . . . . . . . . . . . Knockbacks 20 | . . . . . . . . . 1 19 Impact . | . . . . . . . . . . . Kinetic 18 | . . . . . . . . . 1 17 Secondary 2 | . . . . . . . . . . 2 Self-Inflicted Damage 213 | . . . . . . . . . 213 . Shots 2 | . . . . . . . . . 2 . Rammed . | . . . . . . . . . . . Targets Rammed . | . . . . . . . . . . . Kicked . | . . . . . . . . . . . Crushed . | . . . . . . . . . . . Highest Temperature 790 | 20 115 411 362 199 368 332 329 200 555 790 Average Temperature 129 | 15 29 133 103 86 108 106 130 89 195 182 Received Heat Transfer 3837 | . 252 498 540 1023 156 231 . . 264 873 Effects 51 | . . 5 2 . 1 . . . 6 37 Shutdowns 8 | . . 1 . . . . . . 1 6 Energy Bleed 9 | . . . 1 . 1 . . . 3 4 Interference 7 | . . 1 . . . . . . . 6 Matter Decay 4 | . . 1 . . . . . . 1 2 Short Circuit 4 | . . 1 . . . . . . 1 2 Damage (minor) 9 | . . 1 1 . . . . . . 7 Damage (major) 7 | . . . . . . . . . . 7 Damage (core) 3 | . . . . . . . . . . 3 Siege Activations . | . . . . . . . . . . . Robots Corrupted 1 | . 1 . . . . . . . . . Combat Hostiles . | . . . . . . . . . . . Parts Fried 1 | . 1 . . . . . . . . . Impact Corruptions . | . . . . . . . . . . . Robots Melted 15 | . . 1 1 4 2 2 . 1 . 4 Combat Hostiles 14 | . . . 1 4 2 2 . 1 . 4 Parts Melted 98 | . 1 15 8 22 9 19 . . 2 22 Heat Transferred 28777 | . 1225 5358 1961 5106 1998 4296 868 124 783 7058 Parts Sabotaged 2 | . . . . . . . . . . 2 Parts Stolen . | . . . . . . . . . . . Parts Stripped . | . . . . . . . . . . . Power Chain Reactions . | . . . . . . . . . . . Alert | -11 -10 -9 -8 -7 -6 -6 -6 -6 -6 -5 ------- Run | Yrd Mat Mat Mat Fac Fac Ext Cet Arc Hub Fac Peak Influence 868 | 5 155 473 332 239 180 234 360 319 868 847 Initial 410 | . 3 18 137 56 61 14 90 124 111 410 Average 220 | 5 44 179 123 117 93 130 271 301 526 480 Maximum Alert Level 3 | . . 2 1 1 . 1 1 1 3 3 Low Security (%) 60 | 100 100 56 87 82 100 88 37 11 24 1 Level 1 22 | . . 37 12 17 . 11 62 88 12 28 Level 2 12 | . . 6 . . . . . . 16 59 Level 3 4 | . . . . . . . . . 46 10 Level 4 . | . . . . . . . . . . . Level 5 . | . . . . . . . . . . . High Security . | . . . . . . . . . . . Max Security . | . . . . . . . . . . . Squads Dispatched 35 | . 3 4 1 3 4 1 2 . 8 9 Investigation 8 | . 1 3 . . . 1 2 . 1 . Extermination 9 | . . . . 2 3 . . . 1 3 Reinforcement 13 | . 2 1 1 1 1 . . . 3 4 Assault 3 | . . . . . . . . . 1 2 Garrison 2 | . . . . . . . . . 2 . Intercept . | . . . . . . . . . . . Searches Triggered . | . . . . . . . . . . . Construction Impeded 1 | . . . . . 1 . . . . . Haulers Reinforced 2 | . . . . . . . . . . 2 Active Scanning Responses . | . . . . . . . . . . . Cargo Convoy Interrupts 1 | . . . . . . . . . . 1 Stealth | -11 -10 -9 -8 -7 -6 -6 -6 -6 -6 -5 --------- Run | Yrd Mat Mat Mat Fac Fac Ext Cet Arc Hub Fac Distress Signals 9 | . 2 2 . . . . 2 . 1 2 Communications Jammed . | . . . . . . . . . . . Distress Signals . | . . . . . . . . . . . Times Spotted 244 | . 29 40 31 19 8 23 15 5 18 56 Peak Tracking Total 6 | . 4 5 5 6 3 4 5 1 4 5 Tactical Retreats 9 | . . 1 3 . . 1 . . 2 2 Traps | -11 -10 -9 -8 -7 -6 -6 -6 -6 -6 -5 ------- Run | Yrd Mat Mat Mat Fac Fac Ext Cet Arc Hub Fac Traps Triggered 16 | . 4 1 . 1 1 5 . . . 4 Indirectly . | . . . . . . . . . . . Trap Hack Attempts 14 | . . . . . . . . . . 14 Triggered . | . . . . . . . . . . . Disarmed . | . . . . . . . . . . . Reprogrammed 1 | . . . . . . . . . . 1 Reused . | . . . . . . . . . . . Traps Extracted . | . . . . . . . . . . . Installed . | . . . . . . . . . . . Triggered 3 | . 2 . . . . . . . . 1 Machines | -11 -10 -9 -8 -7 -6 -6 -6 -6 -6 -5 ---------- Run | Yrd Mat Mat Mat Fac Fac Ext Cet Arc Hub Fac Machines Disabled 17 | . . 2 . . . . 2 1 6 6 Max in Single Turn 3 | . . 1 . . . . 1 . 3 2 Garrison Access 3 | . . . . . . . . . 1 2 Network Hub 2 | . . . . . . . . . 2 . Machines Repaired . | . . . . . . . . . . . Machines Dismantled 3 | . . . . . . 1 1 . 1 . Machines Sabotaged . | . . . . . . . . . . . Overloaded Fab Kills . | . . . . . . . . . . . Hacking | -11 -10 -9 -8 -7 -6 -6 -6 -6 -6 -5 --------- Run | Yrd Mat Mat Mat Fac Fac Ext Cet Arc Hub Fac Machines Accessed 52 | . 5 8 10 6 3 5 3 1 2 9 Terminals 32 | . 3 5 6 2 3 4 3 . 1 5 Fabricators 1 | . . . . 1 . . . . . . Repair Stations 5 | . 1 2 . 2 . . . . . . Recycling Units 8 | . 1 1 2 1 . 1 . . . 2 Scanalyzers 3 | . . . 2 . . . . . . 1 Garrison Access 2 | . . . . . . . . . 1 1 Total Hacks 240 | . 22 30 46 14 7 11 8 25 6 71 Successful 151 | . 14 20 39 9 5 2 2 25 . 35 Failed 89 | . 8 10 7 5 2 9 6 . 6 36 Catastrophic 25 | . 2 4 2 1 . 3 3 . 2 8 Database Lockouts . | . . . . . . . . . . . Manual 85 | . 8 12 16 5 4 3 3 2 3 29 Terminals 120 | . 14 13 16 8 7 9 8 . 2 43 Fabricators 1 | . . . . 1 . . . . . . Repair Stations 23 | . 5 15 . 3 . . . . . . Recycling Units 18 | . 3 2 4 2 . 2 . . . 5 Scanalyzers 48 | . . . 26 . . . . . . 22 Garrison Access 5 | . . . . . . . . . 4 1 Terminal Hacks 50 | . 4 2 2 3 2 1 2 25 . 9 Record 30 | . . . . . . . 2 25 . 3 Part Schematic 2 | . . . . . . . . . . 2 Robot Analysis 1 | . . . . . 1 . . . . . Open Door 1 | . . . . . . 1 . . . . Branch Access Points 1 | . . . . . . . . . . 1 Terminal Index 1 | . 1 . . . . . . . . . Alert Level 2 | . . 1 . 1 . . . . . . Unreport Threat 8 | . 2 1 2 2 . . . . . 1 Locate Traps 3 | . 1 . . . 1 . . . . 1 Registered Components 1 | . . . . . . . . . . 1 Fabricator Hacks 1 | . . . . 1 . . . . . . Network Status 1 | . . . . 1 . . . . . . Repair Station Hacks 19 | . 4 14 . 1 . . . . . . Scan Component 10 | . 2 7 . 1 . . . . . . Repair 9 | . 2 7 . . . . . . . . Recycling Unit Hacks 14 | . 3 1 4 2 . . . . . 4 Process 2 | . 1 . 1 . . . . . . . Report Inventory 8 | . 1 1 2 1 . . . . . 3 Retrieve Matter 2 | . 1 . 1 . . . . . . . Retrieve Components 2 | . . . . 1 . . . . . 1 Scanalyzer 40 | . . . 26 . . . . . . 14 Insert Component 18 | . . . 12 . . . . . . 6 Analyze 22 | . . . 14 . . . . . . 8 Garrison Access Hacks 1 | . . . . . . . . . . 1 Seal Access 1 | . . . . . . . . . . 1 Unauthorized Hacks 26 | . 3 3 7 2 3 1 . . . 7 Terminals 26 | . 3 3 7 2 3 1 . . . 7 Assimilate 4 | . . . 1 . . . . . . 3 Botnet 22 | . 3 3 6 2 3 1 . . . 4 Fabricators . | . . . . . . . . . . . Repair Stations . | . . . . . . . . . . . Recycling Units . | . . . . . . . . . . . Scanalyzers . | . . . . . . . . . . . Garrison Access . | . . . . . . . . . . . Data Cores Recovered . | . . . . . . . . . . . Used . | . . . . . . . . . . . Hacking Detections 43 | . 4 7 8 5 3 5 3 . 2 6 Full Trace Events 7 | . 1 2 . . . 1 2 . 1 . Feedback Events . | . . . . . . . . . . . Feedback Blocked . | . . . . . . . . . . . Robot Schematics Acquired . | . . . . . . . . . . . Robots Built . | . . . . . . . . . . . Authchips . | . . . . . . . . . . . Time . | . . . . . . . . . . . Total Robot Build Rating . | . . . . . . . . . . . Part Schematics Acquired 20 | . . . 12 . . . . . . 8 Parts Built . | . . . . . . . . . . . Authchips . | . . . . . . . . . . . Time . | . . . . . . . . . . . Total Part Build Rating . | . . . . . . . . . . . Parts Repaired 9 | . 2 7 . . . . . . . . Time 270 | . 58 212 . . . . . . . . Parts Recycled . | . . . . . . . . . . . Recycled Matter 146 | . 141 . 5 . . . . . . . Retrieved Matter 321 | . 316 . 5 . . . . . . . Retrieved Components 20 | . . . . 10 . . . . . 10 Parts Scanalyzed 18 | . . . 12 . . . . . . 6 Part Schematics Acquired 18 | . . . 12 . . . . . . 6 Parts Damaged 2 | . . . 2 . . . . . . . Bothacking | -11 -10 -9 -8 -7 -6 -6 -6 -6 -6 -5 ------------ Run | Yrd Mat Mat Mat Fac Fac Ext Cet Arc Hub Fac Used RIF Installer . | . . . . . . . . . . . Robots Hacked . | . . . . . . . . . . . Non-combat . | . . . . . . . . . . . Combat . | . . . . . . . . . . . Robot Hacks Applied . | . . . . . . . . . . . Relay Couplers Released 3 | . . . . . . . . . 1 2 Machine Destruction 3 | . . . . . . . . . 1 2 Fabnet Peak Effective % . | . . . . . . . . . . . Robots Rewired 11 | . . . . . . 10 . . . 1 Allies Hacked . | . . . . . . . . . . . Hacks Repelled . | . . . . . . . . . . . Allies | -11 -10 -9 -8 -7 -6 -6 -6 -6 -6 -5 -------- Run | Yrd Mat Mat Mat Fac Fac Ext Cet Arc Hub Fac Total Allies 18 | . . . . . . 12 5 . . 1 Largest Group 8 | . . . . . . 8 7 6 5 1 Highest-Rated Group 671 | . . . . . . 247 671 629 480 29 Highest-Rated Ally 159 | . . . . . . 159 152 149 96 29 Total Orders . | . . . . . . . . . . . Ally Attacks 194 | . . . . . . 59 71 17 42 5 Total Damage 6100 | . . . . . . 1632 2224 671 1518 55 Kills 42 | . . . . . . 15 15 1 10 1 Allies Corrupted . | . . . . . . . . . . . Allies Melted . | . . . . . . . . . . . Intel | -11 -10 -9 -8 -7 -6 -6 -6 -6 -6 -5 ------- Run | Yrd Mat Mat Mat Fac Fac Ext Cet Arc Hub Fac Robot Analysis Total 1 | . . . . . 1 . . . . . Derelict Logs Recovered . | . . . . . . . . . . . Drone Launches . | . . . . . . . . . . . Drone Recoveries . | . . . . . . . . . . . Exploration | -11 -10 -9 -8 -7 -6 -6 -6 -6 -6 -5 ------------- Run | Yrd Mat Mat Mat Fac Fac Ext Cet Arc Hub Fac Turns Passed 12354 | 24 1181 2157 2006 1207 839 1135 545 393 577 2290 Spaces Moved 5084 | 14 577 719 895 536 388 441 228 201 253 832 Core . | . . . . . . . . . . . Treads 63 | . . . . . . 1 . . . 62 Legs 6 | 6 . . . . . . . . . . Wheels 5015 | 8 577 719 895 536 388 440 228 201 253 770 Hover . | . . . . . . . . . . . Flight . | . . . . . . . . . . . Fastest Speed 100 | 100 100 150 175 175 190 190 190 190 175 175 Average Speed 185 | 108 144 206 178 175 190 190 190 190 189 200 Slowest Speed 400 | 120 255 270 270 175 190 400 190 190 190 320 Overloaded Moves . | . . . . . . . . . . . Propulsion Burnouts . | . . . . . . . . . . . Robots Hopped . | . . . . . . . . . . . Cave-ins Triggered . | . . . . . . . . . . . Exploration Rate (%) 50 | 3 86 64 65 16 12 72 83 99 28 31 Regions Visited 10 Branch Regions 4 Pre-discovered Areas . | . . . . . . . . . . . Known Exits Taken 6 | . . . . 1 1 1 1 1 1 . Unknown Exits Taken 4 | 1 1 1 1 . . . . . . . Scrap Searched . | . . . . . . . . . . . Spaces Dug 1 | . . . 1 . . . . . . . Terrain Destroyed 395 | . . . 1 . . 1 1 3 336 53 Melee . | . . . . . . . . . . . Projectile 39 | . . . 1 . . 1 1 3 15 18 AOE 356 | . . . . . . . . . 321 35 Terrain Rammed . | . . . . . . . . . . . Walls Destroyed . | . . . . . . . . . . . Machines Disabled . | . . . . . . . . . . . Actions | -11 -10 -9 -8 -7 -6 -6 -6 -6 -6 -5 --------- Run | Yrd Mat Mat Mat Fac Fac Ext Cet Arc Hub Fac Total 6922 | 21 802 1197 1161 674 444 622 303 204 296 1198 Wait 630 | . 73 290 71 22 8 9 29 . 14 114 Move 5074 | 13 576 718 894 535 387 440 227 200 252 832 Hop . | . . . . . . . . . . . Pick Up 179 | 3 45 28 35 15 9 7 6 . . 31 Fast Attach 43 | . 11 4 5 7 1 1 4 . . 10 Attach 60 | 2 2 16 7 7 4 1 3 . 2 16 Detach 2 | . . . . . 1 . 1 . . . Swap 75 | . 7 6 18 6 4 7 3 . 2 22 Drop 134 | 2 12 18 39 15 8 10 11 . . 19 Fire 563 | 1 76 117 92 67 22 45 11 4 18 110 Melee . | . . . . . . . . . . . Ram . | . . . . . . . . . . . Kick . | . . . . . . . . . . . Crush . | . . . . . . . . . . . Escape Stasis 35 | . . . . . . 35 . . . . Rewire 89 | . . . . . . 59 . . . 30 Trap 14 | . . . . . . . . . . 14 Miscellaneous 24 | . . . . . . 8 8 . 8 . Route ------- -11/Scrapyard -10/Materials (discovered 3 exits: *Mat x2 / [*Min]) -9/Materials (discovered 4 exits: *Mat x2 / [*Min x2]) -8/Materials (discovered 2 exits: *Fac x2) -7/Factory (discovered 3 exits: *Fac / *Sto / *Low) -6/Factory -6/Extension (discovered 2 exits: *Fac / *Cet) -6/Cetus (discovered 2 exits: *Fac / *Arc) -6/Archives (discovered 3 exits: *Fac / *Hub x2) -6/Hub_04(d) -5/Factory (discovered 2 exits: Upp x2) History --------- Turn | Location | Event 4 | -11/Scrapyard | Discovered new exit (range 3) 25 | -11/Scrapyard | Entered Materials 166 | -10/Materials | Discovered new exit (range 13) 280 | -10/Materials | Discovered new exit (range 16) 302 | -10/Materials | Build established: Mutant 373 | -10/Materials | Core integrity fell below 50% 620 | -10/Materials | Discovered new exit (range 4) 748 | -10/Materials | Build established: Hauler-Mutant 1007 | -10/Materials | Repaired Arm. Wheel 1034 | -10/Materials | Repaired Sml. Laser 1206 | -10/Materials | Entered another Materials area 1206 | -9/Materials | Evolved 2 slots: Propulsion x1, Utility x1 1625 | -9/Materials | Discovered new exit (range 16) 2125 | -9/Materials | Core integrity fell below 50% 2216 | -9/Materials | Discovered new exit (range 4) 2510 | -9/Materials | Repaired Cargo Storage Unit 2623 | -9/Materials | Repaired Disposable Heat Sink 2656 | -9/Materials | Repaired Arm. Wheel 2689 | -9/Materials | Repaired Arm. Wheel 2722 | -9/Materials | Repaired Arm. Wheel 2788 | -9/Materials | Discovered new exit (range 14) 3035 | -9/Materials | Repaired Imp. Ion Engine 3063 | -9/Materials | Repaired Heat Sink 3150 | -9/Materials | Core integrity fell below 20% 3191 | -9/Materials | Lost 3 parts (2n1w) 3215 | -9/Materials | Discovered new exit (range 13) 3363 | -9/Materials | Entered another Materials area 3363 | -8/Materials | Evolved 2 slots: Propulsion x1, Utility x1 3941 | -8/Materials | Discovered new exit (range 14) 5320 | -8/Materials | Discovered new exit (range 8) 5369 | -8/Materials | Entered Factory 5369 | -7/Factory | Evolved 2 slots: Utility x2 5603 | -7/Factory | Discovered new exit (range 13) 5770 | -7/Factory | Identified exit to Lower Caves 6211 | -7/Factory | Lost 3 parts (2p1u) 6375 | -7/Factory | Discovered new exit (range 7) 6386 | -7/Factory | Identified exit to Storage 6557 | -7/Factory | Discovered new exit (range 7) 6565 | -7/Factory | Identified exit to Factory 6576 | -7/Factory | Entered another Factory area 6576 | -6/Factory | Evolved 2 slots: Utility x1, Weapon x1 7025 | -6/Factory | Build established: Hauler-Gunner 7368 | -6/Factory | Discovered new exit (range 16) 7403 | -6/Factory | Identified exit to Extension 7415 | -6/Factory | Entered Extension 8056 | -6/Extension | Rescued A7 8063 | -6/Extension | Spotted B-75 Beast 8072 | -6/Extension | Destroyed B-75 Beast 8077 | -6/Extension | Spotted B-75 Beast 8087 | -6/Extension | Allies destroyed B-75 Beast 8090 | -6/Extension | Lost 8 allies 8322 | -6/Extension | Discovered new exit (range 16) 8324 | -6/Extension | Discovered new exit (range 15) 8349 | -6/Extension | Identified exit to Cetus 8455 | -6/Extension | Rescued a captive Derelict 8550 | -6/Extension | Entered Cetus 8550 | -6/Cetus | Accompanied by 2 allies (A7) 8555 | -6/Cetus | Acquired a Cetus Manufacturing Module code from A7 8575 | -6/Cetus | Spotted Cetus Guard 8575 | -6/Cetus | Spotted Cetus Guard 8581 | -6/Cetus | Spotted Cetus Guard 8583 | -6/Cetus | Allies destroyed Cetus Guard 8588 | -6/Cetus | Allies destroyed Cetus Guard 8594 | -6/Cetus | Destroyed Cetus Guard 8803 | -6/Cetus | Started Cetus Manufacturing Module 8828 | -6/Cetus | Manufactured an Enhanced Grunt 8842 | -6/Cetus | Escorted A7 to Cetus Mainframe 8853 | -6/Cetus | Manufactured an Enhanced Grunt 8878 | -6/Cetus | Manufactured an Enhanced Grunt 8903 | -6/Cetus | Manufactured an Enhanced Grunt 8913 | -6/Cetus | Discovered new exit (range 15) 8928 | -6/Cetus | Manufactured an Enhanced Grunt 8946 | -6/Cetus | Spotted Cetus Guard 8946 | -6/Cetus | Spotted Cetus Guard 8951 | -6/Cetus | Spotted Cetus Guard 8951 | -6/Cetus | Spotted Cetus Guard 8959 | -6/Cetus | Allies destroyed Cetus Guard 8963 | -6/Cetus | Allies destroyed Cetus Guard 8964 | -6/Cetus | Allies destroyed Cetus Guard 8968 | -6/Cetus | Allies destroyed Cetus Guard 8980 | -6/Cetus | Discovered new exit (range 16) 8993 | -6/Cetus | Met Revision 17 9013 | -6/Cetus | Identified exit to Factory 9091 | -6/Cetus | Identified exit to Archives 9095 | -6/Cetus | Entered Archives 9095 | -6/Archives | Accompanied by 6 allies (A7) 9100 | -6/Archives | Received a hacking code to weaken MAIN.C 9158 | -6/Archives | Unable to access archive contents 9163 | -6/Archives | Discovered new exit (range 15) 9177 | -6/Archives | Unable to access archive contents 9180 | -6/Archives | Discovered new exit (range 15) 9198 | -6/Archives | Discovered exit to Factory (range 16) 9287 | -6/Archives | Identified exit to Hub_04(d) 9488 | -6/Archives | Entered Hub_04(d) 9488 | -6/Hub_04(d) | Accompanied by 5 allies 9674 | -6/Hub_04(d) | Garrison activated, responded to threat 9698 | -6/Hub_04(d) | Discovered exit to Factory (range 4) 9742 | -6/Hub_04(d) | Lost 3 allies 9894 | -6/Hub_04(d) | Network Hub disabled 10006 | -6/Hub_04(d) | Network Hub disabled 10006 | -6/Hub_04(d) | Spotted Lightning 10007 | -6/Hub_04(d) | Spotted Lightning 10025 | -6/Hub_04(d) | Spotted Lightning 10037 | -6/Hub_04(d) | System corruption reached 10% 10065 | -6/Hub_04(d) | Entered Factory 10065 | -5/Factory | Evolved 2 slots: Utility x1, Weapon x1 10074 | -5/Factory | Lost 3 parts (1p1u1w) 10218 | -5/Factory | Identified exit to Upper Caves 10479 | -5/Factory | P-70 Sage assimilated allied Soldier 6a 10825 | -5/Factory | Build established: Hacker-Tank 10942 | -5/Factory | Cargo convoy interrupted 11073 | -5/Factory | Core integrity fell below 50% 11303 | -5/Factory | Build established: Hacker-Mutant 11695 | -5/Factory | Build established: Hacker-Tank 12165 | -5/Factory | First assault squad dispatched 12354 | -5/Factory | Core integrity fell below 20% 12356 | -5/Factory | Core destroyed Last Messages --------------- 12346_ Overheating: Short circuit. 12346_ Imp. Cooling System destroyed. 12347_ Overheating: Plasma Rifle damaged (-14). 12347_ G-67 Veteran overheating. 12349_ Overheating: Imp. System Shield damaged (-1). 12349_ Overheating: Imp. Cooling System damaged (-25). 12350_ Overheating: System interference. 12350_ Plasma Rifle temporarily disabled. 12350_ Imp. Cooling System temporarily disabled. 12350_ U-05 Engineer builds a Wall. 12351_ Overheating: Energy bleed (-22). 12352_ Power failure, Quantum Reactor shutdown. 12352_ Overheating: Plasma Rifle damaged (-21). 12353_ X-77 Beamer suffers critical hit (Burn). 12354_ Overheating: Core damaged (-130). 12354_ Plasma Rifle destroyed. 12355_ G-67 Veteran heat spikes uncontrollably. 12356_ Overheating: Core damaged (-140). Map ----- +----------------------------------------------------+ | # #???????????????????????????## ##??????# #??# #? | | # #????????????????????????????# #########+#### #? | | # #????????????????????????????# # ## #? | | # #????????????????????????????# # = ## #? | | # #????????????????????????????# # """""" ## ## | | #+###???????????????############+#= """""" # # | | #???????????????# ! " # """""" %/ # | | #???????????????# "% # """""" # ! # | | !#???????????????# " # ## ## | | #???????????????# =/ ############## #? | | #???????????????# """ // #????????????# ## | | #???????????????# """ #????????????# | | "" #???????H???????# ! """ #????????????# | | "" #???????????????# #????????????# | | "" #???????????????# """ """ #????????????+ | | "" #???????????????# """ """ #????????????# | | #???????????????# """ """ #????????????# ! | | #???????????????# % #????????????#^!% | | #####???????+##############"######????????????#^ = | | ??????????? % #????????????# | | ??????????? = #????????????# | | ?????????? * #????????????+ | | ?????????? % R #????????????# | | ?????????? m=[ #????????????# | | ?????????????#############g##### #????????????? | | ??????????????????????# @x%! #? #????????????? | | ??????????????????????# [* #??#????????????? | | ??????????????????????# #??????????????????? | | ??????????????????????# #??????????????????? | | ??????????????????????# #??????????????????? | | ??????????????????????#!!! #??????????????????? | | ??????????????????????#!!! #??????????????????? | | ??????????????????????#!!! ! #??????????????????? | | ??????????????????????# #??????????????????? | | ??????????????????????# #??????????????????? | | ??????????????????????# #??????????!???????? | | ??????????????????????# #??????????????????? | | ??????????????????????# #??????????????????! | | ??????????????????????#########??????????????????? | | ?????????????????????????????????????????????????? | | ?????????????????????????????????????????????????? | | ?????????????????????????????????????????????????? | | ?????????????????????????????????????????????????? | | ?????????????????????????????????????????????????? | | ?????????????????????????????????????????????????? | | ?????????????????????????????????????????????????? | | ?????????????????????????????????????????????????? | | ?????????????????????????????????????????????????? | | ?????????????????????????????????????????????????? | | ?????????????????????????????????????????????????? | +----------------------------------------------------+ Best States ------------- Heat Dissipation 67 Coolant Potential 50 Energy Generation 25 Energy Capacity 350 Matter Stores 300 Matter Capacity 300 Sight Range 16 Terrain Scan Density 10 Jamming Range 12 Armor Coverage 600 Evasion (%) 45 Targeting Accuracy 8 Recoil Reduction 2 Offensive Hacking 10 Defensive Hacking 26 Item Schematics ----------------- Arm. Wheel | -8/Materials | Scanalyzed Imp. Treads | -8/Materials | Scanalyzed Plasma Cutter | -8/Materials | Scanalyzed Hcp. Matter Pod | -8/Materials | Scanalyzed Hrd. Light Armor Plating | -8/Materials | Scanalyzed Hacking Suite | -8/Materials | Scanalyzed Machine Analyzer | -8/Materials | Scanalyzed Signal Interpreter | -8/Materials | Scanalyzed Hpw. Tractor Beam | -8/Materials | Scanalyzed Arm. Huge Wheel | -8/Materials | Scanalyzed Imp. Datajack | -8/Materials | Scanalyzed Adv. Beam Rifle | -8/Materials | Scanalyzed Mass Driver | -5/Factory | Hacked Centrium Medium Armor Plating | -5/Factory | Scanalyzed Centrium Heavy Treads | -5/Factory | Scanalyzed Neutrino Core | -5/Factory | Scanalyzed Adv. Targeting Computer | -5/Factory | Scanalyzed Imp. Cooling System | -5/Factory | Scanalyzed Quantum Reactor | -5/Factory | Scanalyzed Imp. Coolant Injector | -5/Factory | Hacked Robot Schematics ------------------ None Fabricated ------------ Nothing Alien Tech Used ----------------- None Achievements -------------- Main Advantage Prison Break Project G-00 Revising The Future Challenges ------------ None Game ------ Seed HeatRegenerativeStreamer Manual? 0 Play Time 01:47:39 Cumulative 143.6 hours Start 2024.05.02 @ 12:40:51 End 2024.05.02 @ 14:59:57 Sessions 1 Manual Loads 0 Difficulty Rogue Special Mode None Game No. 276 Rogue 276 Adventurer 0 Explorer 0 Win Type - Total 0 Types 0/0/0/0/0/0/0/0/0 Lore% 36 Gallery% 49 Achievement% 36 Wizard Run 0 Options --------- Layout 1 ASCII 0 Keyboard 0 Movement Mouse Keybinds 0 Fullscreen 1 Font 24/Smallcaps Map View 50x40 Zoom Use 0% Tactical HUD 1 Map Filters NONE Filters NONE Steam 1 RUN: a8daffd6-83bd-45fa-8ff5-827e31985be7